[Event "Titled Tuesday Blitz November 14 Early 2023"]
[White "Foisor, Sabina-Francesca"]
[Black "Tasev, Dejan"]
[WhiteFideId "1212915"]
[BlackFideId "936618"]
[WhiteElo "2455"]
[BlackElo "2583"]
[Result "1/2-1/2"]
[Round "7"]
[TimeControl "180+1"]
[Date "2023.11.14"]
[WhiteClock "0:00:07"]
[BlackClock "0:00:09"]
[Board "97"]

1. d4 {[%clk 0:03:00]}  Nf6 {[%clk 0:02:59]} 2. c4 {[%clk 0:02:59]}  e6 {[%clk 0:03:00]} 3. Nf3 {[%clk 0:02:59]}  d5 {[%clk 0:03:00]} 4. Qc2 {[%clk 0:02:54]}  Be7 {[%clk 0:03:00]} 5. Bg5 {[%clk 0:02:54]}  c6 {[%clk 0:03:00]} 6. e3 {[%clk 0:02:54]}  Nbd7 {[%clk 0:03:00]} 7. Nc3 {[%clk 0:02:54]}  O-O {[%clk 0:03:00]} 8. Bd3 {[%clk 0:02:55]}  dxc4 {[%clk 0:03:00]} 9. Bxc4 {[%clk 0:02:55]}  b5 {[%clk 0:03:00]} 10. Bd3 {[%clk 0:02:56]}  a6 {[%clk 0:03:01]} 11. O-O {[%clk 0:02:55]}  Bb7 {[%clk 0:02:54]} 12. Rad1 {[%clk 0:02:51]}  Rc8 {[%clk 0:02:50]} 13. e4 {[%clk 0:02:45]}  h6 {[%clk 0:02:42]} 14. Bh4 {[%clk 0:02:44]}  c5 {[%clk 0:02:06]} 15. e5 {[%clk 0:02:35]}  Nd5 {[%clk 0:02:01]} 16. Nxd5 {[%clk 0:02:26]}  Bxd5 {[%clk 0:01:58]} 17. Bxe7 {[%clk 0:02:24]}  Qxe7 {[%clk 0:01:55]} 18. Be4 {[%clk 0:02:22]}  Nb6 {[%clk 0:01:37]} 19. Bxd5 {[%clk 0:02:19]}  Nxd5 {[%clk 0:01:37]} 20. dxc5 {[%clk 0:02:15]}  Rxc5 {[%clk 0:01:31]} 21. Qd2 {[%clk 0:02:15]}  Rfc8 {[%clk 0:01:30]} 22. Rc1 {[%clk 0:02:14]}  Qc7 {[%clk 0:01:25]} 23. Rxc5 {[%clk 0:02:10]}  Qxc5 {[%clk 0:01:24]} 24. Qa5 {[%clk 0:02:09]}  Qb6 {[%clk 0:01:11]} 25. Qxb6 {[%clk 0:01:59]}  Nxb6 {[%clk 0:01:10]} 26. b3 {[%clk 0:01:58]}  Rc2 {[%clk 0:01:08]} 27. Ra1 {[%clk 0:01:57]}  Nd5 {[%clk 0:01:07]} 28. h4 {[%clk 0:01:48]}  Nc3 {[%clk 0:00:56]} 29. a4 {[%clk 0:01:47]}  b4 {[%clk 0:00:50]} 30. Nd4 {[%clk 0:01:34]}  Ne2+ {[%clk 0:00:41]} 31. Nxe2 {[%clk 0:01:30]}  Rxe2 {[%clk 0:00:42]} 32. Rd1 {[%clk 0:01:25]}  Rxe5 {[%clk 0:00:30]} 33. Rd8+ {[%clk 0:01:19]}  Kh7 {[%clk 0:00:29]} 34. Rb8 {[%clk 0:01:14]}  a5 {[%clk 0:00:29]} 35. Rb5 {[%clk 0:01:09]}  Rxb5 {[%clk 0:00:19]} 36. axb5 {[%clk 0:01:08]}  a4 {[%clk 0:00:19]} 37. b6 {[%clk 0:01:05]}  a3 {[%clk 0:00:20]} 38. b7 {[%clk 0:01:06]}  a2 {[%clk 0:00:20]} 39. b8=Q {[%clk 0:01:06]}  a1=Q+ {[%clk 0:00:21]} 40. Kh2 {[%clk 0:01:07]}  Qc3 {[%clk 0:00:21]} 41. Qf4 {[%clk 0:01:02]}  f5 {[%clk 0:00:19]} 42. Qd6 {[%clk 0:00:34]}  Qxb3 {[%clk 0:00:18]} 43. h5 {[%clk 0:00:34]}  Qc4 {[%clk 0:00:16]} 44. g3 {[%clk 0:00:26]}  b3 {[%clk 0:00:15]} 45. Qd7 {[%clk 0:00:20]}  Qg4 {[%clk 0:00:14]} 46. Qxe6 {[%clk 0:00:15]}  Qxh5+ {[%clk 0:00:14]} 47. Kg2 {[%clk 0:00:16]}  b2 {[%clk 0:00:14]} 48. Qe1 {[%clk 0:00:10]}  Qf7 {[%clk 0:00:12]} 49. Qb1 {[%clk 0:00:09]}  Qd5+ {[%clk 0:00:11]} 50. Kh2 {[%clk 0:00:09]}  Qb5 {[%clk 0:00:11]} 51. Kg2 {[%clk 0:00:08]}  h5 {[%clk 0:00:11]} 52. Kh2 {[%clk 0:00:08]}  g6 {[%clk 0:00:11]} 53. Kg2 {[%clk 0:00:08]}  Qc6+ {[%clk 0:00:12]} 54. Kh2 {[%clk 0:00:09]}  Qc1 {[%clk 0:00:12]} 55. Qa2 {[%clk 0:00:08]}  b1=Q {[%clk 0:00:12]} 56. Qf7+ {[%clk 0:00:08]}  Kh6 {[%clk 0:00:12]} 57. Qf8+ {[%clk 0:00:07]}  Kg5 {[%clk 0:00:12]} 58. Qe7+ {[%clk 0:00:06]}  Kg4 {[%clk 0:00:13]} 59. Qe2+ {[%clk 0:00:05]}  Kg5 {[%clk 0:00:11]} 60. Qe7+ {[%clk 0:00:06]}  Kh6 {[%clk 0:00:10]} 61. Qf8+ {[%clk 0:00:06]}  Kh7 {[%clk 0:00:09]} 62. Qf7+ {[%clk 0:00:06]}  Kh6 {[%clk 0:00:09]} 63. Qf8+ {[%clk 0:00:07]} 1/2-1/2


[Site "https://www.chess.com"]

[Event "Titled Tuesday Blitz November 14 Early 2023"]
[White "Derjabin, Ilja"]
[Black "Mazurkiewicz, Michal"]
[WhiteFideId "14104768"]
[BlackFideId "1124943"]
[WhiteElo "2572"]
[BlackElo "2454"]
[Result "1-0"]
[Round "7"]
[TimeControl "180+1"]
[Date "2023.11.14"]
[WhiteClock "0:00:53"]
[BlackClock "0:00:03"]
[Board "99"]

1. d4 {[%clk 0:03:00]}  Nf6 {[%clk 0:02:59]} 2. c4 {[%clk 0:03:00]}  e5 {[%clk 0:02:59]} 3. e3 {[%clk 0:02:58]}  Bb4+ {[%clk 0:02:59]} 4. Nc3 {[%clk 0:02:58]}  exd4 {[%clk 0:02:57]} 5. exd4 {[%clk 0:02:58]}  d5 {[%clk 0:02:58]} 6. Bd3 {[%clk 0:02:57]}  dxc4 {[%clk 0:02:54]} 7. Bxc4 {[%clk 0:02:57]}  O-O {[%clk 0:02:54]} 8. Ne2 {[%clk 0:02:57]}  c5 {[%clk 0:02:44]} 9. O-O {[%clk 0:02:45]}  Nc6 {[%clk 0:02:41]} 10. dxc5 {[%clk 0:02:44]}  Bxc5 {[%clk 0:02:41]} 11. Bg5 {[%clk 0:02:42]}  Qxd1 {[%clk 0:02:13]} 12. Raxd1 {[%clk 0:02:41]}  Ng4 {[%clk 0:02:11]} 13. Ne4 {[%clk 0:02:30]}  Bb6 {[%clk 0:02:10]} 14. Nd6 {[%clk 0:02:25]}  Be6 {[%clk 0:01:47]} 15. h3 {[%clk 0:02:01]}  Bxc4 {[%clk 0:01:43]} 16. Nxc4 {[%clk 0:02:00]}  Nge5 {[%clk 0:01:43]} 17. Nxb6 {[%clk 0:01:58]}  axb6 {[%clk 0:01:44]} 18. a3 {[%clk 0:01:55]}  Nc4 {[%clk 0:01:41]} 19. Bc1 {[%clk 0:01:51]}  Rfd8 {[%clk 0:01:32]} 20. Nc3 {[%clk 0:01:49]}  Nd4 {[%clk 0:01:26]} 21. Be3 {[%clk 0:01:28]}  Nc2 {[%clk 0:01:12]} 22. Nd5 {[%clk 0:01:11]}  N2xe3 {[%clk 0:00:57]} 23. Nxe3 {[%clk 0:01:11]}  Nxb2 {[%clk 0:00:42]} 24. Rb1 {[%clk 0:01:10]}  Rd2 {[%clk 0:00:43]} 25. Rfc1 {[%clk 0:01:07]}  g6 {[%clk 0:00:39]} 26. Rc7 {[%clk 0:01:06]}  Rxa3 {[%clk 0:00:31]} 27. Rxb7 {[%clk 0:01:06]}  Nd3 {[%clk 0:00:28]} 28. Nc4 {[%clk 0:01:04]}  Raa2 {[%clk 0:00:11]} 29. Nxd2 {[%clk 0:01:04]}  Rxd2 {[%clk 0:00:12]} 30. Rd7 {[%clk 0:01:03]}  b5 {[%clk 0:00:05]} 31. Kh2 {[%clk 0:01:01]}  b4 {[%clk 0:00:03]} 32. Rb3 {[%clk 0:01:00]}  Nxf2 {[%clk 0:00:01]} 33. Rxd2 {[%clk 0:00:58]}  Ne4 {[%clk 0:00:02]} 34. Rdb2 {[%clk 0:00:57]}  Nc5 {[%clk 0:00:02]} 35. Rxb4 {[%clk 0:00:58]}  Nd3 {[%clk 0:00:03]} 36. Rb8+ {[%clk 0:00:58]}  Kg7 {[%clk 0:00:04]} 37. Rd2 {[%clk 0:00:58]}  Ne5 {[%clk 0:00:05]} 38. Ra2 {[%clk 0:00:58]}  h5 {[%clk 0:00:06]} 39. Rb7 {[%clk 0:00:57]}  h4 {[%clk 0:00:07]} 40. g3 {[%clk 0:00:57]}  Nf3+ {[%clk 0:00:06]} 41. Kg2 {[%clk 0:00:57]}  Ng5 {[%clk 0:00:07]} 42. gxh4 {[%clk 0:00:57]}  Ne6 {[%clk 0:00:07]} 43. Raa7 {[%clk 0:00:56]}  Kf6 {[%clk 0:00:06]} 44. Rxf7+ {[%clk 0:00:55]}  Ke5 {[%clk 0:00:06]} 45. Rfe7 {[%clk 0:00:56]}  Kf5 {[%clk 0:00:04]} 46. Rxe6 {[%clk 0:00:57]}  g5 {[%clk 0:00:05]} 47. hxg5 {[%clk 0:00:55]}  Kf4 {[%clk 0:00:01]} 48. g6 {[%clk 0:00:55]}  Kg5 {[%clk 0:00:02]} 49. g7 {[%clk 0:00:54]}  Kh4 {[%clk 0:00:02]} 50. g8=Q {[%clk 0:00:53]}  Kh5 {[%clk 0:00:03]} 51. Qg4# {[%clk 0:00:53]} 1-0


[Site "https://www.chess.com"]

[Event "Titled Tuesday Blitz November 14 Early 2023"]
[White "Lymar, Vladislav"]
[Black "Joie, Sebastien"]
[WhiteFideId "14162180"]
[BlackFideId "650420"]
[WhiteElo "2569"]
[BlackElo "2453"]
[Result "1-0"]
[Round "7"]
[TimeControl "180+1"]
[Date "2023.11.14"]
[WhiteClock "0:00:08"]
[BlackClock "0:00:00"]
[Board "100"]

1. d4 {[%clk 0:03:00]}  d5 {[%clk 0:02:59]} 2. c4 {[%clk 0:03:01]}  e6 {[%clk 0:03:00]} 3. cxd5 {[%clk 0:03:01]}  exd5 {[%clk 0:03:01]} 4. Bf4 {[%clk 0:03:02]}  Nf6 {[%clk 0:03:01]} 5. e3 {[%clk 0:02:58]}  Be7 {[%clk 0:03:00]} 6. Bd3 {[%clk 0:02:58]}  O-O {[%clk 0:03:01]} 7. Nc3 {[%clk 0:02:57]}  c5 {[%clk 0:03:00]} 8. dxc5 {[%clk 0:02:55]}  Bxc5 {[%clk 0:02:59]} 9. Nf3 {[%clk 0:02:54]}  h6 {[%clk 0:02:59]} 10. O-O {[%clk 0:02:53]}  Nc6 {[%clk 0:02:58]} 11. Rc1 {[%clk 0:02:52]}  Be6 {[%clk 0:02:58]} 12. Nb5 {[%clk 0:02:50]}  Bb6 {[%clk 0:02:54]} 13. Bb1 {[%clk 0:02:26]}  Bg4 {[%clk 0:02:24]} 14. h3 {[%clk 0:02:14]}  Bxf3 {[%clk 0:02:16]} 15. Qxf3 {[%clk 0:02:15]}  a6 {[%clk 0:02:16]} 16. Nd6 {[%clk 0:02:14]}  Qd7 {[%clk 0:02:02]} 17. Nf5 {[%clk 0:01:58]}  Ne7 {[%clk 0:01:23]} 18. Nxh6+ {[%clk 0:01:00]}  gxh6 {[%clk 0:01:14]} 19. Bxh6 {[%clk 0:01:01]}  Ne4 {[%clk 0:01:05]} 20. Bxe4 {[%clk 0:00:48]}  dxe4 {[%clk 0:01:02]} 21. Qf6 {[%clk 0:00:44]}  Nf5 {[%clk 0:00:49]} 22. Qxb6 {[%clk 0:00:23]}  Rfc8 {[%clk 0:00:35]} 23. Qf6 {[%clk 0:00:17]}  Qe6 {[%clk 0:00:33]} 24. Qxe6 {[%clk 0:00:16]}  fxe6 {[%clk 0:00:34]} 25. Bf4 {[%clk 0:00:17]}  Ne7 {[%clk 0:00:29]} 26. Rfd1 {[%clk 0:00:14]}  Nd5 {[%clk 0:00:29]} 27. Be5 {[%clk 0:00:14]}  Kf7 {[%clk 0:00:25]} 28. a3 {[%clk 0:00:13]}  Kg6 {[%clk 0:00:11]} 29. g4 {[%clk 0:00:12]}  Kf7 {[%clk 0:00:08]} 30. Kg2 {[%clk 0:00:12]}  b5 {[%clk 0:00:07]} 31. Kg3 {[%clk 0:00:12]}  a5 {[%clk 0:00:08]} 32. h4 {[%clk 0:00:12]}  b4 {[%clk 0:00:08]} 33. axb4 {[%clk 0:00:12]}  axb4 {[%clk 0:00:09]} 34. Rxc8 {[%clk 0:00:12]}  Rxc8 {[%clk 0:00:09]} 35. Rd4 {[%clk 0:00:13]}  Rc2 {[%clk 0:00:06]} 36. Rxe4 {[%clk 0:00:13]}  Rd2 {[%clk 0:00:05]} 37. h5 {[%clk 0:00:12]}  Rc2 {[%clk 0:00:04]} 38. g5 {[%clk 0:00:12]}  Rc1 {[%clk 0:00:03]} 39. g6+ {[%clk 0:00:11]}  Kg8 {[%clk 0:00:02]} 40. Kg2 {[%clk 0:00:11]}  Rc2 {[%clk 0:00:00]} 41. Bd4 {[%clk 0:00:08]} 1-0


[Site "https://www.chess.com"]

[Event "Titled Tuesday Blitz November 14 Early 2023"]
[White "PoXerStar"]
[Black "Statham_l3"]
[WhiteElo "2438"]
[BlackElo "2564"]
[Result "0-1"]
[Round "7"]
[TimeControl "180+1"]
[Date "2023.11.14"]
[WhiteClock "0:00:00"]
[BlackClock "0:01:38"]
[Board "103"]

1. d4 {[%clk 0:03:00]}  e6 {[%clk 0:02:57]} 2. c4 {[%clk 0:03:00]}  f5 {[%clk 0:02:57]} 3. Nf3 {[%clk 0:03:00]}  Nf6 {[%clk 0:02:57]} 4. g3 {[%clk 0:03:01]}  d5 {[%clk 0:02:57]} 5. Bg2 {[%clk 0:03:01]}  c6 {[%clk 0:02:57]} 6. O-O {[%clk 0:03:02]}  Bd6 {[%clk 0:02:58]} 7. Qc2 {[%clk 0:03:02]}  O-O {[%clk 0:02:57]} 8. Nc3 {[%clk 0:02:59]}  Bd7 {[%clk 0:02:56]} 9. Ne5 {[%clk 0:02:43]}  Be8 {[%clk 0:02:48]} 10. cxd5 {[%clk 0:02:43]}  cxd5 {[%clk 0:02:41]} 11. Bf4 {[%clk 0:02:42]}  Nc6 {[%clk 0:02:38]} 12. Nxc6 {[%clk 0:02:41]}  Bxc6 {[%clk 0:02:34]} 13. Bxd6 {[%clk 0:02:42]}  Qxd6 {[%clk 0:02:35]} 14. e3 {[%clk 0:02:42]}  Rac8 {[%clk 0:02:30]} 15. Rfc1 {[%clk 0:02:42]}  g5 {[%clk 0:02:16]} 16. Qd3 {[%clk 0:02:34]}  Ne4 {[%clk 0:01:58]} 17. Nxe4 {[%clk 0:00:00]}  dxe4 {[%clk 0:01:38]} 0-1


[Site "https://www.chess.com"]

[Event "Titled Tuesday Blitz November 14 Early 2023"]
[White "Haitin, Ilja"]
[Black "Ozates, Tuna"]
[WhiteFideId "4501764"]
[BlackFideId "6354521"]
[WhiteElo "2423"]
[BlackElo "2561"]
[Result "0-1"]
[Round "7"]
[TimeControl "180+1"]
[Date "2023.11.14"]
[WhiteClock "0:00:07"]
[BlackClock "0:00:31"]
[Board "105"]

1. Nf3 {[%clk 0:03:00]}  b6 {[%clk 0:02:57]} 2. e4 {[%clk 0:03:00]}  Bb7 {[%clk 0:02:58]} 3. Nc3 {[%clk 0:02:59]}  e5 {[%clk 0:02:58]} 4. Nxe5 {[%clk 0:02:54]}  Nc6 {[%clk 0:02:58]} 5. Nf3 {[%clk 0:02:49]}  Bc5 {[%clk 0:02:52]} 6. d4 {[%clk 0:02:48]}  Bb4 {[%clk 0:02:46]} 7. d5 {[%clk 0:02:46]}  Nce7 {[%clk 0:02:46]} 8. Qd4 {[%clk 0:02:45]}  Bxc3+ {[%clk 0:02:46]} 9. Qxc3 {[%clk 0:02:42]}  Nf6 {[%clk 0:02:46]} 10. Bd3 {[%clk 0:02:36]}  O-O {[%clk 0:02:45]} 11. O-O {[%clk 0:02:34]}  c6 {[%clk 0:02:44]} 12. d6 {[%clk 0:02:28]}  Ng6 {[%clk 0:02:43]} 13. e5 {[%clk 0:02:23]}  Nd5 {[%clk 0:02:43]} 14. Qd4 {[%clk 0:02:15]}  f6 {[%clk 0:02:40]} 15. c4 {[%clk 0:02:09]}  c5 {[%clk 0:02:40]} 16. Qg4 {[%clk 0:02:02]}  Nb4 {[%clk 0:02:29]} 17. Bxg6 {[%clk 0:01:36]}  hxg6 {[%clk 0:02:28]} 18. Nh4 {[%clk 0:00:45]}  f5 {[%clk 0:02:07]} 19. Qg3 {[%clk 0:00:39]}  f4 {[%clk 0:02:04]} 20. Qg4 {[%clk 0:00:37]}  g5 {[%clk 0:01:57]} 21. Ng6 {[%clk 0:00:37]}  Re8 {[%clk 0:01:51]} 22. Qh5 {[%clk 0:00:32]}  Re6 {[%clk 0:01:50]} 23. Ne7+ {[%clk 0:00:19]}  Rxe7 {[%clk 0:01:49]} 24. dxe7 {[%clk 0:00:20]}  Qxe7 {[%clk 0:01:50]} 25. a3 {[%clk 0:00:19]}  Nc2 {[%clk 0:01:49]} 26. Rb1 {[%clk 0:00:19]}  Nd4 {[%clk 0:01:47]} 27. Bd2 {[%clk 0:00:18]}  Be4 {[%clk 0:01:07]} 28. Rbd1 {[%clk 0:00:15]}  Bd3 {[%clk 0:01:02]} 29. Rfe1 {[%clk 0:00:15]}  Bxc4 {[%clk 0:01:02]} 30. Bc3 {[%clk 0:00:15]}  Ne6 {[%clk 0:00:55]} 31. Rd6 {[%clk 0:00:13]}  Rf8 {[%clk 0:00:50]} 32. h4 {[%clk 0:00:12]}  gxh4 {[%clk 0:00:46]} 33. Qg4 {[%clk 0:00:13]}  f3 {[%clk 0:00:42]} 34. gxf3 {[%clk 0:00:12]}  Bb5 {[%clk 0:00:39]} 35. Red1 {[%clk 0:00:12]}  Bc6 {[%clk 0:00:36]} 36. Kh2 {[%clk 0:00:13]}  Bxf3 {[%clk 0:00:34]} 37. Qg6 {[%clk 0:00:12]}  Bxd1 {[%clk 0:00:32]} 38. Rxd1 {[%clk 0:00:13]}  Rxf2+ {[%clk 0:00:32]} 39. Kh1 {[%clk 0:00:13]}  Rf3 {[%clk 0:00:30]} 40. Bd2 {[%clk 0:00:12]}  Rh3+ {[%clk 0:00:30]} 41. Kg2 {[%clk 0:00:07]}  Rg3+ {[%clk 0:00:31]} 0-1


[Site "https://www.chess.com"]

[Event "Titled Tuesday Blitz November 14 Early 2023"]
[White "Bilan, Danila"]
[Black "Goldin, Roman"]
[WhiteFideId "24161918"]
[BlackFideId "2803860"]
[WhiteElo "2554"]
[BlackElo "2416"]
[Result "0-1"]
[Round "7"]
[TimeControl "180+1"]
[Date "2023.11.14"]
[WhiteClock "0:01:17"]
[BlackClock "0:00:46"]
[Board "106"]

1. d4 {[%clk 0:03:00]}  Nf6 {[%clk 0:02:59]} 2. Nf3 {[%clk 0:03:00]}  b5 {[%clk 0:02:58]} 3. e3 {[%clk 0:02:58]}  a6 {[%clk 0:02:57]} 4. c4 {[%clk 0:02:58]}  b4 {[%clk 0:02:51]} 5. a3 {[%clk 0:02:48]}  e6 {[%clk 0:02:49]} 6. axb4 {[%clk 0:02:43]}  Bxb4+ {[%clk 0:02:49]} 7. Bd2 {[%clk 0:02:44]}  Qe7 {[%clk 0:02:47]} 8. Bd3 {[%clk 0:02:37]}  Bb7 {[%clk 0:02:42]} 9. Qb3 {[%clk 0:02:32]}  a5 {[%clk 0:02:15]} 10. c5 {[%clk 0:01:56]}  Bd5 {[%clk 0:02:04]} 11. Bc4 {[%clk 0:01:50]}  Na6 {[%clk 0:01:17]} 12. Bxb4 {[%clk 0:01:33]}  Nxb4 {[%clk 0:01:08]} 13. Bxd5 {[%clk 0:01:28]}  Nfxd5 {[%clk 0:00:48]} 14. e4 {[%clk 0:01:26]}  Nf4 {[%clk 0:00:46]} 15. Qxb4 {[%clk 0:01:17]}  Nd3+ {[%clk 0:00:46]} 0-1


[Site "https://www.chess.com"]

[Event "Titled Tuesday Blitz November 14 Early 2023"]
[White "Degtiarev, Evgeny"]
[Black "Santos Flores, Alberto"]
[WhiteFideId "4149610"]
[BlackFideId "3601234"]
[WhiteElo "2366"]
[BlackElo "2545"]
[Result "0-1"]
[Round "7"]
[TimeControl "180+1"]
[Date "2023.11.14"]
[WhiteClock "0:00:00"]
[BlackClock "0:00:49"]
[Board "110"]

1. d4 {[%clk 0:03:00]}  d5 {[%clk 0:03:00]} 2. c4 {[%clk 0:02:59]}  c6 {[%clk 0:03:00]} 3. Nc3 {[%clk 0:02:59]}  Nf6 {[%clk 0:03:00]} 4. e3 {[%clk 0:02:59]}  a6 {[%clk 0:03:00]} 5. Nf3 {[%clk 0:02:37]}  Bf5 {[%clk 0:03:00]} 6. cxd5 {[%clk 0:02:24]}  cxd5 {[%clk 0:03:00]} 7. Bd3 {[%clk 0:02:22]}  Bxd3 {[%clk 0:02:59]} 8. Qxd3 {[%clk 0:02:23]}  e6 {[%clk 0:02:59]} 9. O-O {[%clk 0:02:22]}  Be7 {[%clk 0:02:58]} 10. e4 {[%clk 0:02:22]}  dxe4 {[%clk 0:02:57]} 11. Nxe4 {[%clk 0:02:23]}  Nxe4 {[%clk 0:02:54]} 12. Qxe4 {[%clk 0:02:24]}  Nc6 {[%clk 0:02:53]} 13. Rd1 {[%clk 0:02:13]}  Qd5 {[%clk 0:02:50]} 14. Qxd5 {[%clk 0:02:02]}  exd5 {[%clk 0:02:51]} 15. Bf4 {[%clk 0:01:54]}  O-O {[%clk 0:02:51]} 16. Ne5 {[%clk 0:01:53]}  Rac8 {[%clk 0:02:44]} 17. Nd7 {[%clk 0:01:50]}  Rfe8 {[%clk 0:02:27]} 18. Nb6 {[%clk 0:01:50]}  Rcd8 {[%clk 0:02:27]} 19. Bc7 {[%clk 0:01:49]}  Bf6 {[%clk 0:02:27]} 20. Bxd8 {[%clk 0:01:45]}  Rxd8 {[%clk 0:02:28]} 21. Na4 {[%clk 0:01:31]}  Bxd4 {[%clk 0:02:23]} 22. Nc3 {[%clk 0:01:31]}  Bxc3 {[%clk 0:02:14]} 23. bxc3 {[%clk 0:01:30]}  b5 {[%clk 0:02:14]} 24. Rd2 {[%clk 0:01:26]}  Ne7 {[%clk 0:02:10]} 25. Re1 {[%clk 0:01:21]}  Kf8 {[%clk 0:02:09]} 26. a4 {[%clk 0:01:03]}  Rc8 {[%clk 0:02:07]} 27. axb5 {[%clk 0:01:01]}  axb5 {[%clk 0:02:08]} 28. Rb2 {[%clk 0:01:01]}  Rxc3 {[%clk 0:02:05]} 29. Rxb5 {[%clk 0:01:01]}  Rc8 {[%clk 0:02:04]} 30. Rb7 {[%clk 0:00:55]}  Ng6 {[%clk 0:02:02]} 31. g3 {[%clk 0:00:54]}  Rd8 {[%clk 0:02:00]} 32. f4 {[%clk 0:00:52]}  f6 {[%clk 0:01:49]} 33. Rc1 {[%clk 0:00:46]}  d4 {[%clk 0:01:36]} 34. Rd1 {[%clk 0:00:44]}  Ne7 {[%clk 0:01:28]} 35. Kf2 {[%clk 0:00:37]}  h5 {[%clk 0:01:25]} 36. Rb4 {[%clk 0:00:20]}  Nf5 {[%clk 0:01:25]} 37. Rd3 {[%clk 0:00:17]}  Ra8 {[%clk 0:01:24]} 38. Rb2 {[%clk 0:00:16]}  Ra4 {[%clk 0:01:18]} 39. h3 {[%clk 0:00:15]}  Kf7 {[%clk 0:01:17]} 40. Kf3 {[%clk 0:00:14]}  Nd6 {[%clk 0:01:14]} 41. Rbd2 {[%clk 0:00:13]}  Nb5 {[%clk 0:01:14]} 42. Rb2 {[%clk 0:00:12]}  Nd6 {[%clk 0:01:14]} 43. Rbd2 {[%clk 0:00:11]}  Nb5 {[%clk 0:01:13]} 44. g4 {[%clk 0:00:11]}  hxg4+ {[%clk 0:01:13]} 45. hxg4 {[%clk 0:00:12]}  Ke6 {[%clk 0:01:13]} 46. f5+ {[%clk 0:00:12]}  Kd5 {[%clk 0:01:13]} 47. Rb3 {[%clk 0:00:11]}  Nd6 {[%clk 0:01:09]} 48. Rb8 {[%clk 0:00:11]}  Ra3+ {[%clk 0:01:04]} 49. Kf4 {[%clk 0:00:11]}  d3 {[%clk 0:01:04]} 50. Rd8 {[%clk 0:00:07]}  Ra4+ {[%clk 0:00:57]} 51. Kf3 {[%clk 0:00:07]}  Rd4 {[%clk 0:00:58]} 52. Rd7 {[%clk 0:00:06]}  Kc4 {[%clk 0:00:54]} 53. Rxg7 {[%clk 0:00:04]}  Kc3 {[%clk 0:00:53]} 54. Rd1 {[%clk 0:00:03]}  d2 {[%clk 0:00:54]} 55. Rc7+ {[%clk 0:00:02]}  Kd3 {[%clk 0:00:53]} 56. Rd7 {[%clk 0:00:00]}  Kc2 {[%clk 0:00:49]} 0-1


[Site "https://www.chess.com"]

[Event "Titled Tuesday Blitz November 14 Early 2023"]
[White "brm72"]
[Black "Lacasa Diaz, Jose Antonio"]
[BlackFideId "2203375"]
[WhiteElo "2535"]
[BlackElo "2355"]
[Result "0-1"]
[Round "7"]
[TimeControl "180+1"]
[Date "2023.11.14"]
[WhiteClock "0:01:50"]
[BlackClock "0:02:31"]
[Board "112"]

1. e4 {[%clk 0:03:00]}  c5 {[%clk 0:02:52]} 2. Nf3 {[%clk 0:03:00]}  d6 {[%clk 0:02:52]} 3. d4 {[%clk 0:03:00]}  cxd4 {[%clk 0:02:53]} 4. Nxd4 {[%clk 0:03:01]}  Nf6 {[%clk 0:02:53]} 5. Nc3 {[%clk 0:03:01]}  e6 {[%clk 0:02:53]} 6. Be2 {[%clk 0:02:46]}  Be7 {[%clk 0:02:52]} 7. O-O {[%clk 0:02:46]}  O-O {[%clk 0:02:52]} 8. f4 {[%clk 0:02:45]}  Qb6 {[%clk 0:02:52]} 9. Kh1 {[%clk 0:02:38]}  Nc6 {[%clk 0:02:52]} 10. Be3 {[%clk 0:02:29]}  Qxb2 {[%clk 0:02:49]} 11. Na4 {[%clk 0:02:25]}  Qb4 {[%clk 0:02:47]} 12. c3 {[%clk 0:02:25]}  Qa5 {[%clk 0:02:47]} 13. Bf3 {[%clk 0:02:07]}  Bd7 {[%clk 0:02:40]} 14. Nb2 {[%clk 0:02:00]}  Qxc3 {[%clk 0:02:37]} 15. Rf2 {[%clk 0:01:50]}  Qxe3 {[%clk 0:02:31]} 0-1


[Site "https://www.chess.com"]